fUSD/lending_fUSD_20250823
["ID","MTS","AMOUNT","RATE_DAILY","PERIOD"]
[380943514,1755909134319,-416.81,0.00015342,2]
[380943515,1755909134329,-400.0,0.00015342,2]
[380943516,1755909134338,-400.0,0.00015342,2]
[380943517,1755909134347,-400.0,0.00015342,2]
[380943518,1755909134356,-693.63,0.00015342,2]
[380943519,1755909134365,-455.44,0.00015342,2]
[380943520,1755909134376,-674.56,0.00015342,2]
[380943521,1755909134385,-723.42,0.00015342,2]
[380943522,1755909134395,-400.0,0.00015342,2]
[380943523,1755909134404,-652.2,0.00015342,2]
[380943524,1755909134414,-987.34,0.00015342,2]
[380943525,1755909134423,-1304.91,0.00015342,2]
[380943526,1755909134433,-400.0,0.00015342,2]
[380943527,1755909134443,-494.24,0.00015342,2]
[380943528,1755909134452,-1043.71,0.00015342,2]
[380943529,1755909134462,-400.0,0.00015342,2]
[380943530,1755909134472,-1121.06,0.00015342,2]
[380943531,1755909134481,-400.0,0.00015342,2]
[380943532,1755909134491,-659.86,0.00015342,2]
[380943533,1755909134500,-400.0,0.00015342,2]
[380943534,1755909134510,-912.7,0.00015342,2]
[380943535,1755909134520,-400.0,0.00015342,2]
[380943536,1755909134530,-603.68,0.00015342,2]
[380943537,1755909134539,-792.16,0.00015342,2]
[380943538,1755909134549,-609.49,0.00015342,2]
[380943539,1755909134558,-400.0,0.00015342,2]
[380943540,1755909134567,-400.0,0.00015342,2]
[380943541,1755909134577,-400.0,0.00015342,2]
[380943542,1755909134586,-792.27,0.00015342,2]
[380943543,1755909134595,-400.0,0.00015342,2]
[380943544,1755909134605,-426.25,0.00015342,2]
[380943545,1755909134615,-981.73,0.00015342,2]
[380943546,1755909134624,-400.0,0.00015342,2]
[380943547,1755909134634,-466.29,0.00015342,2]
[380943548,1755909134643,-400.0,0.00015342,2]
[380943549,1755909134653,-1058.6,0.00015342,2]
[380943550,1755909134662,-1201.08,0.00015342,2]
[380943551,1755909134672,-738.76,0.00015342,2]
[380943552,1755909134681,-825.5,0.00015342,2]
[380943553,1755909134690,-400.0,0.00015342,2]
[380943554,1755909134699,-958.1,0.00015342,2]
[380943555,1755909134708,-1111.07,0.00015342,2]
[380943556,1755909134717,-509.27,0.00015342,2]
[380943557,1755909134727,-468.64,0.00015342,2]
[380943558,1755909134736,-593.59,0.00015342,2]
[380943559,1755909134745,-881.56,0.00015342,2]
[380943560,1755909134754,-400.0,0.00015342,2]
[380943561,1755909134763,-1368.88,0.00015342,2]
[380943562,1755909134774,-750.95,0.00015342,2]
[380943563,1755909134784,-706.36,0.00015342,2]
[380943564,1755909134794,-401.82,0.00015342,2]
[380943565,1755909134803,-728.88,0.00015342,2]
[380943566,1755909134813,-557.47,0.00015342,2]
[380943567,1755909134822,-400.0,0.00015342,2]
[380943568,1755909134832,-952.67,0.00015342,2]
[380943569,1755909134842,-692.7,0.00015342,2]
[380943570,1755909134851,-400.0,0.00015342,2]
[380943571,1755909134860,-400.0,0.00015342,2]
[380943572,1755909134870,-400.0,0.00015342,2]
[380943573,1755909134881,-779.31,0.00015342,2]
[380943574,1755909134891,-1582.88,0.00015342,2]
[380943575,1755909134901,-577.4,0.00015342,2]
[380943576,1755909134912,-1122.02,0.00015342,2]
[380943577,1755909134922,-564.14,0.00015342,2]
[380943578,1755909134933,-786.68,0.00015342,2]
[380943579,1755909134942,-956.63,0.00015342,2]
[380943580,1755909134952,-400.0,0.00015342,2]
[380943581,1755909134961,-1198.24,0.00015342,2]
[380943582,1755909134971,-673.4,0.00015342,2]
[380943583,1755909134980,-848.19,0.00015342,2]
[380943584,1755909134990,-437.85,0.00015342,2]
[380943585,1755909135000,-704.4,0.00015342,2]
[380943586,1755909135010,-400.97,0.00015342,2]
[380943587,1755909135020,-548.8,0.00015342,2]
[380943588,1755909135030,-507.03,0.00015342,2]
[380943589,1755909135040,-437.95,0.00015342,2]
[380943590,1755909135050,-400.0,0.00015342,2]
[380943591,1755909135062,-556.41,0.00015342,2]
[380943592,1755909135072,-1155.73,0.00015342,2]
[380943593,1755909135081,-431.52,0.00015342,2]
[380943594,1755909135090,-850.86,0.00015342,2]
[380943595,1755909135100,-818.95,0.00015342,2]
[380943596,1755909135109,-400.0,0.00015342,2]
[380943597,1755909135119,-400.0,0.00015342,2]
[380943598,1755909135128,-487.71,0.00015342,2]
[380943599,1755909135137,-838.37,0.00015342,2]
[380943600,1755909135147,-1159.8,0.00015342,2]
[380943601,1755909135156,-484.71,0.00015342,2]
[380943602,1755909135166,-400.0,0.00015342,2]
[380943603,1755909135175,-506.13,0.00015342,2]
[380943604,1755909135185,-430.8,0.00015342,2]
[380943605,1755909135195,-749.94,0.00015342,2]
[380943606,1755909135210,-924.83,0.00015342,2]
[380943607,1755909135220,-1313.72,0.00015342,2]
[380943608,1755909135230,-150.37,0.00015342,2]
[380943609,1755909135241,-400.0,0.00015342,2]
[380943610,1755909135251,-1444.09,0.00015342,2]
[380943611,1755909135261,-765.27,0.00015342,2]
[380943612,1755909135270,-400.0,0.00015342,2]
[380943613,1755909135282,-385.1029977,0.00015342,2]
[380943614,1755909135291,-400.0,0.00015342,2]
[380943615,1755909135303,-400.0,0.00015342,2]
[380943616,1755909135315,-444.7,0.00015342,2]
[380943617,1755909135328,-6099.92,0.00015342,2]
[380943618,1755909135338,-400.0,0.00015342,2]
[380943619,1755909135349,-993.51,0.00015342,2]
[380943620,1755909135359,-544.24,0.00015342,2]
[380943621,1755909135369,-605.79,0.00015342,2]
[380943622,1755909135380,-530.58713682,0.00015342,2]
[380943623,1755909135390,-400.0,0.00015342,2]
[380943624,1755909135400,-400.0,0.00015342,2]
[380943625,1755909135410,-830.79,0.00015342,2]
[380943626,1755909135421,-1071.62,0.00015342,2]
[380943627,1755909135431,-514.4,0.00015342,2]
[380943628,1755909135442,-662.65,0.00015342,2]
[380943629,1755909135452,-574.14,0.00015342,2]
[380943630,1755909135463,-477.51,0.00015342,2]
[380943631,1755909135473,-622.81,0.00015342,2]
[380943632,1755909135483,-1245.75,0.00015342,2]
[380943633,1755909135495,-516.75,0.00015342,2]
[380943634,1755909135504,-757.12,0.00015342,2]
[380943635,1755909135514,-468.67,0.00015342,2]
[380943636,1755909135524,-400.0,0.00015342,2]
[380943637,1755909135534,-655.72,0.00015342,2]
[380943638,1755909135544,-1114.83,0.00015342,2]
[380943639,1755909135554,-1549.38,0.00015342,2]
[380943640,1755909135563,-490.46,0.00015342,2]
[380943641,1755909135573,-402.98,0.00015342,2]
[380943642,1755909135583,-193.74,0.00015342,2]
[380943643,1755909135593,-1455.01,0.00015342,2]
[380943644,1755909135603,-400.0,0.00015342,2]
[380943645,1755909135613,-400.0,0.00015342,2]
[380943646,1755909135623,-500.59,0.00015342,2]
[380943647,1755909135632,-400.0,0.00015342,2]
[380943648,1755909135642,-553.89,0.00015342,2]
[380943649,1755909135652,-958.06,0.00015342,2]
[380943650,1755909135662,-1000.0,0.00015342,2]
[380943651,1755909135671,-400.0,0.00015342,2]
[380943652,1755909135681,-400.0,0.00015342,2]
[380943653,1755909135690,-400.0,0.00015342,2]
[380943654,1755909135701,-765.26,0.00015342,2]
[380943655,1755909135710,-684.36,0.00015342,2]
[380943656,1755909135719,-400.0,0.00015342,2]
[380943657,1755909135729,-1609.25,0.00015342,2]
[380943658,1755909135739,-509.39,0.00015342,2]
[380943659,1755909135749,-748.86,0.00015342,2]
[380943660,1755909135759,-794.68,0.00015342,2]
[380943661,1755909135770,-632.68,0.00015342,2]
[380943662,1755909135781,-400.0,0.00015342,2]
[380943663,1755909135790,-654.86,0.00015342,2]
[380943664,1755909135800,-400.0,0.00015342,2]
[380943665,1755909135809,-1326.0,0.00015342,2]
[380943666,1755909135819,-400.0,0.00015342,2]
[380943667,1755909135829,-1273.55,0.00015342,2]
[380943668,1755909135839,-754.86,0.00015342,2]
[380943669,1755909135848,-535.34,0.00015342,2]
[380943670,1755909135858,-1058.52,0.00015342,2]
[380943671,1755909135868,-584.52,0.00015342,2]
[380943672,1755909135878,-542.29,0.00015342,2]
[380943673,1755909135888,-400.0,0.00015342,2]
[380943674,1755909135898,-619.27,0.00015342,2]
[380943675,1755909135908,-400.0,0.00015342,2]
[380943676,1755909135919,-1513.64,0.00015342,2]
[380943677,1755909135929,-559.29,0.00015342,2]
[380943678,1755909135939,-634.92,0.00015342,2]
[380943679,1755909135949,-675.54,0.00015342,2]
[380943680,1755909135959,-440.2,0.00015342,2]
[380943681,1755909135968,-1090.13,0.00015342,2]
[380943682,1755909135978,-400.0,0.00015342,2]
[380943683,1755909135988,-484.32,0.00015342,2]
[380943684,1755909135998,-1041.84,0.00015342,2]
[380943685,1755909136009,-400.0,0.00015342,2]
[380943686,1755909136019,-1076.24,0.00015342,2]
[380943687,1755909136030,-1111.63,0.00015342,2]
[380943688,1755909136040,-1066.21,0.00015342,2]
[380943689,1755909136050,-558.61,0.00015342,2]
[380943690,1755909136059,-1929.62,0.00015342,2]
[380943691,1755909136069,-543.28,0.00015342,2]
[380943692,1755909136079,-409.53,0.00015342,2]
[380943693,1755909136089,-400.0,0.00015342,2]
[380943694,1755909136099,-453.31,0.00015342,2]
[380943695,1755909136110,-639.7,0.00015342,2]
[380943696,1755909136120,-656.72,0.00015342,2]
[380943697,1755909136130,-400.0,0.00015342,2]
[380943698,1755909136140,-630.26,0.00015342,2]
[380943699,1755909136149,-691.77,0.00015342,2]
[380943700,1755909136159,-984.96,0.00015342,2]
[380943701,1755909136169,-854.82,0.00015342,2]
[380943702,1755909136180,-484.18,0.00015342,2]
[380943703,1755909136191,-400.0,0.00015342,2]
[380943704,1755909136202,-400.0,0.00015342,2]
[380943705,1755909136214,-900.69,0.00015342,2]
[380943706,1755909136225,-849.76,0.00015342,2]
[380943707,1755909136238,-440.43,0.00015342,2]
[380943708,1755909136248,-463.91,0.00015342,2]
[380943709,1755909136259,-548.44,0.00015342,2]
[380943710,1755909136269,-734.69,0.00015342,2]
[380943711,1755909136281,-633.7,0.00015342,2]
[380943712,1755909136291,-1283.05,0.00015342,2]
[380943713,1755909136301,-400.0,0.00015342,2]
[380943714,1755909136310,-774.74,0.00015342,2]
[380943715,1755909136320,-554.16,0.00015342,2]
[380943716,1755909136330,-400.0,0.00015342,2]
[380943717,1755909136341,-923.64,0.00015342,2]
[380943718,1755909136351,-684.33,0.00015342,2]
[380943719,1755909136363,-831.09,0.00015342,2]
[380943720,1755909136373,-724.59,0.00015342,2]
[380943721,1755909136383,-1301.68,0.00015342,2]
[380943722,1755909136393,-515.8,0.00015342,2]
[380943723,1755909136403,-618.62,0.00015342,2]
[380943724,1755909136414,-400.0,0.00015342,2]
[380943725,1755909136423,-1002.03,0.00015342,2]
[380943726,1755909136433,-400.0,0.00015342,2]
[380943727,1755909136443,-400.0,0.00015342,2]
[380943728,1755909136453,-400.0,0.00015342,2]
[380943729,1755909136462,-940.39,0.00015342,2]
[380943730,1755909136471,-400.0,0.00015342,2]
[380943731,1755909136481,-400.0,0.00015342,2]
[380943732,1755909136492,-400.0,0.00015342,2]
[380943733,1755909136502,-933.3,0.00015342,2]
[380943734,1755909136512,-682.02,0.00015342,2]
[380943735,1755909136522,-466.33,0.00015342,2]
[380943736,1755909136532,-789.37,0.00015342,2]
[380943737,1755909136543,-400.0,0.00015342,2]
[380943738,1755909136552,-535.1,0.00015342,2]
[380943739,1755909136562,-1243.51,0.00015342,2]
[380943740,1755909136572,-412.28,0.00015342,2]
[380943741,1755909136582,-581.93,0.00015342,2]
[380943742,1755909136593,-828.94,0.00015342,2]
[380943743,1755909136603,-400.0,0.00015342,2]
[380943744,1755909136613,-712.67,0.00015342,2]
[380943745,1755909136623,-779.34,0.00015342,2]
[380943746,1755909136632,-400.0,0.00015342,2]
[380943747,1755909136643,-495.96,0.00015342,2]
[380943748,1755909136653,-628.81,0.00015342,2]
[380943749,1755909136662,-636.7,0.00015342,2]
[380943750,1755909136672,-400.0,0.00015342,2]
[380943751,1755909136682,-941.75,0.00015342,2]
[380943752,1755909136692,-2007.17,0.00015342,2]
[380943753,1755909136703,-400.0,0.00015342,2]
[380943754,1755909136713,-971.09,0.00015342,2]
[380943755,1755909136722,-400.0,0.00015342,2]
[380943756,1755909136732,-1107.09,0.00015342,2]
[380943757,1755909136742,-566.3,0.00015342,2]
[380943758,1755909136752,-864.25,0.00015342,2]
[380943759,1755909136762,-400.0,0.00015342,2]
[380943760,1755909136774,-585.02,0.00015342,2]
[380943761,1755909136784,-1099.08,0.00015342,2]
[380943762,1755909136794,-400.0,0.00015342,2]
[380943763,1755909136804,-676.57,0.00015342,2]
[380943764,1755909136814,-400.0,0.00015342,2]
[380943765,1755909136824,-400.0,0.00015342,2]
[380943766,1755909136834,-749.92,0.00015342,2]
[380943767,1755909136845,-634.31,0.00015342,2]
[380943768,1755909136855,-894.75,0.00015342,2]
[380943769,1755909136866,-476.98,0.00015342,2]
[380943770,1755909136877,-455.35,0.00015342,2]
[380943771,1755909136887,-1015.51,0.00015342,2]
[380943772,1755909136898,-634.38,0.00015342,2]
[380943773,1755909136908,-560.43,0.00015342,2]
[380943774,1755909136918,-667.33,0.00015342,2]
[380943775,1755909136929,-556.68,0.00015342,2]
[380943776,1755909136939,-440.79,0.00015342,2]
[380943777,1755909136950,-769.3,0.00015342,2]
[380943778,1755909136961,-400.0,0.00015342,2]
[380943779,1755909136970,-1376.17,0.00015342,2]
[380943780,1755909136981,-811.19,0.00015342,2]
[380943781,1755909136991,-661.11,0.00015342,2]
[380943782,1755909137001,-400.0,0.00015342,2]
[380943783,1755909137012,-531.99,0.00015342,2]
[380943784,1755909137023,-421.79,0.00015342,2]
[380943785,1755909137033,-913.58,0.00015342,2]
[380943786,1755909137043,-984.19,0.00015342,2]
[380943787,1755909137053,-657.18,0.00015342,2]
[380943788,1755909137063,-490.26,0.00015342,2]
[380943789,1755909137074,-641.16,0.00015342,2]
[380943790,1755909137084,-472.42,0.00015342,2]
[380943791,1755909137094,-1002.95,0.00015342,2]
[380943792,1755909137105,-884.67,0.00015342,2]
[380943793,1755909137115,-400.0,0.00015342,2]
[380943794,1755909137125,-436.7,0.00015342,2]
[380943795,1755909137136,-400.0,0.00015342,2]
[380943796,1755909137146,-400.0,0.00015342,2]
[380943797,1755909137156,-477.98219837,0.00015342,2]
[380943798,1755909137166,-1347.44,0.00015342,2]
[380943799,1755909137176,-500.0,0.00015373,2]
[380943800,1755909137186,-500.0,0.00015373,2]
[380943801,1755909137196,-500.0,0.00015373,2]
[380943802,1755909137209,-500.0,0.00015373,2]
[380943803,1755909137219,-500.0,0.00015373,2]
[380943804,1755909137229,-500.0,0.00015373,2]
[380943805,1755909137239,-500.0,0.00015373,2]
[380943806,1755909137249,-500.0,0.00015373,2]
[380943807,1755909137259,-16369.37823453,0.000154,2]
[380943808,1755909137269,-497.83486755,0.000154,2]
[380943809,1755909137282,-90000.0,0.000154,2]
[380943810,1755909137293,-181.42270755,0.00015411,2]
[380943811,1755909137303,-5659.49,0.00015453,6]
[380943812,1755909137314,-150.0,0.00015459,2]
[380943813,1755909137325,-220700.14,0.0001546,2]
[380943814,1755909137335,-767.92,0.00015465,2]
[380943815,1755909137346,-500.0,0.00015486,2]
[380943816,1755909137356,-1096.0,0.000155,2]
[380943817,1755909137367,-400.0,0.00015515,2]
[380943818,1755909137377,-1300.0,0.0001552,2]
[380943819,1755909137387,-2400.0,0.0001552,2]
[380943820,1755909137398,-3000.0,0.0001552,2]
[380943821,1755909137408,-1003.03,0.00015534,6]
[380943822,1755909137419,-151.0,0.00015576,2]
[380943823,1755909137429,-601.23091468,0.0001559,2]
[380943824,1755909137438,-549.67,0.00015598,2]
[380943825,1755909137448,-400.0,0.00015607,2]
[380943826,1755909137458,-150.0,0.00015615,2]
[380943827,1755909137468,-729.0,0.00015616,2]
[380943828,1755909137478,-500.0,0.00015616,2]
[380943829,1755909137489,-500.0,0.00015616,2]
[380943830,1755909137499,-765.0,0.00015616,2]
[380943831,1755909137508,-500.0,0.00015616,2]
[380943832,1755909137518,-500.0,0.00015616,2]
[380943833,1755909137529,-400.0,0.00015616,2]
[380943834,1755909137539,-1471.92,0.00015616,2]
[380943835,1755909137549,-400.0,0.00015616,2]
[380943836,1755909137559,-400.0,0.00015616,2]
[380943837,1755909137568,-603.48,0.00015616,2]
[380943838,1755909137838,-612.02,0.00015616,2]
[380943839,1755909137849,-448.19,0.00015616,2]
[380943840,1755909137859,-400.0,0.00015616,2]
[380943841,1755909137868,-400.0,0.00015616,2]
[380943842,1755909137878,-153.492172,0.00015616,2]
[380943843,1755909137887,-431.57,0.00015616,2]
[380943844,1755909137896,-400.0,0.00015616,2]
[380943845,1755909137906,-400.0,0.00015616,2]
[380943846,1755909137916,-434.66,0.00015616,2]
[380943847,1755909137926,-649.59,0.00015616,2]
[380943848,1755909137935,-681.46,0.00015616,2]
[380943849,1755909137945,-472.35,0.00015616,2]
[380943850,1755909137954,-400.0,0.00015616,2]
[380943851,1755909137964,-400.0,0.00015616,2]
[380943852,1755909137974,-409.04,0.00015616,2]
[380943853,1755909137983,-235.795947,0.00015616,2]
[380943854,1755909137992,-534.48,0.00015616,2]
[380943855,1755909138003,-546.13,0.00015616,2]
[380943856,1755909138012,-635.82,0.00015616,2]
[380943857,1755909138022,-476.99,0.00015616,2]
[380943858,1755909138032,-400.0,0.00015616,2]
[380943859,1755909138042,-400.0,0.00015616,2]
[380943860,1755909138051,-400.0,0.00015616,2]
[380943861,1755909138061,-400.0,0.00015616,2]
[380943862,1755909138071,-507.78,0.00015616,2]
[380943863,1755909138080,-400.0,0.00015616,2]
[380943864,1755909138091,-744.95,0.00015616,2]
[380943865,1755909138100,-590.74,0.00015616,2]
[380943866,1755909138110,-400.0,0.00015616,2]
[380943867,1755909138119,-575.25,0.00015616,2]
[380943868,1755909138129,-990.54657,0.00015616,2]
[380943869,1755909138143,-400.0,0.00015616,2]
[380943870,1755909138152,-400.0,0.00015616,2]
[380943871,1755909138161,-400.0,0.00015616,2]
[380943872,1755909138171,-400.0,0.00015616,2]
[380943873,1755909138180,-400.0,0.00015616,2]
[380943874,1755909138189,-400.0,0.00015616,2]
[380943875,1755909138199,-400.0,0.00015616,2]
[380943876,1755909138212,-400.0,0.00015616,2]
[380943877,1755909138221,-400.0,0.00015616,2]
[380943878,1755909138231,-410.44,0.00015616,2]
[380943879,1755909138240,-477.98,0.00015616,2]
[380943880,1755909138250,-440.03,0.00015616,2]
[380943881,1755909138259,-692.3,0.00015616,2]
[380943882,1755909138269,-600.48,0.00015616,2]
[380943883,1755909138282,-400.0,0.00015616,2]
[380943884,1755909138292,-402.6,0.00015616,2]
[380943885,1755909138302,-400.0,0.00015616,2]
[380943886,1755909138312,-400.0,0.00015616,2]
[380943887,1755909138322,-400.0,0.00015616,2]
[380943888,1755909138332,-685.13,0.00015616,2]
[380943889,1755909138342,-400.0,0.00015616,2]
[380943890,1755909138351,-400.0,0.00015616,2]
[380943891,1755909138361,-400.0,0.00015616,2]
[380943892,1755909138370,-400.0,0.00015616,2]
[380943893,1755909138380,-400.0,0.00015616,2]
[380943894,1755909138390,-580.21,0.00015616,2]
[380943895,1755909138399,-400.0,0.00015616,2]
[380943896,1755909138409,-400.0,0.00015616,2]
[380943897,1755909138418,-628.41,0.00015616,2]
[380943898,1755909138428,-699.23,0.00015616,2]
[380943899,1755909138438,-400.0,0.00015616,2]
[380943900,1755909138447,-469.22,0.00015616,2]
[380943901,1755909138457,-440.08,0.00015616,2]
[380943902,1755909138467,-622.9,0.00015616,2]
[380943903,1755909138477,-1031.94,0.00015616,2]
[380943904,1755909138487,-740.51,0.00015616,2]
[380943905,1755909138496,-400.0,0.00015616,2]
[380943906,1755909138505,-419.57,0.00015616,2]
[380943907,1755909138515,-511.83,0.00015616,2]
[380943908,1755909138526,-620.5,0.00015616,2]
[380943909,1755909138536,-608.92,0.00015616,2]
[380943910,1755909138546,-738.22,0.00015616,2]
[380943911,1755909138556,-400.0,0.00015616,2]
[380943912,1755909138565,-402.65,0.00015616,2]
[380943913,1755909138575,-699.72,0.00015616,2]
[380943914,1755909138584,-400.0,0.00015616,2]
[380943915,1755909138594,-566.41,0.00015616,2]
[380943916,1755909138604,-400.0,0.00015616,2]
[380943917,1755909138613,-692.55,0.00015616,2]
[380943918,1755909138623,-400.0,0.00015616,2]
[380943919,1755909138636,-400.0,0.00015616,2]
[380943920,1755909138646,-681.21,0.00015616,2]
[380943921,1755909138655,-400.0,0.00015616,2]
[380943922,1755909138665,-461.28,0.00015616,2]
[380943923,1755909138675,-566.05,0.00015616,2]
[380943924,1755909138684,-414.87,0.00015616,2]
[380943925,1755909138693,-400.0,0.00015616,2]
[380943926,1755909138702,-400.0,0.00015616,2]
[380943927,1755909138712,-475.17,0.00015616,2]
[380943928,1755909138722,-489.89,0.00015616,2]
[380943929,1755909138731,-411.77,0.00015616,2]
[380943930,1755909138741,-400.0,0.00015616,2]
[380943931,1755909138751,-400.0,0.00015616,2]
[380943932,1755909138760,-410.23,0.00015616,2]
[380943933,1755909138769,-400.0,0.00015616,2]
[380943934,1755909138779,-400.0,0.00015616,2]
[380943935,1755909138789,-400.0,0.00015616,2]
[380943936,1755909138798,-400.0,0.00015616,2]
[380943937,1755909138808,-639.2,0.00015616,2]
[380943938,1755909138817,-477.58,0.00015616,2]
[380943939,1755909138827,-972.5,0.00015616,2]
[380943940,1755909138836,-414.05,0.00015616,2]
[380943941,1755909138846,-467.39,0.00015616,2]
[380943942,1755909138855,-400.0,0.00015616,2]
[380943943,1755909138864,-400.0,0.00015616,2]
[380943944,1755909138874,-667.14,0.00015616,2]
[380943945,1755909138883,-400.0,0.00015616,2]
[380943946,1755909138892,-532.87,0.00015616,2]
[380943947,1755909138902,-442.87,0.00015616,2]
[380943948,1755909138911,-788.52,0.00015616,2]
[380943949,1755909138921,-400.0,0.00015616,2]
[380943950,1755909138931,-413.86,0.00015616,2]
[380943951,1755909138941,-528.62,0.00015616,2]
[380943952,1755909138950,-400.0,0.00015616,2]
[380943953,1755909138959,-400.0,0.00015616,2]
[380943954,1755909138969,-858.81,0.00015616,2]
[380943955,1755909138980,-400.0,0.00015616,2]
[380943956,1755909138990,-962.13,0.00015616,2]
[380943957,1755909139000,-640.39,0.00015616,2]
[380943958,1755909139010,-400.0,0.00015616,2]
[380943959,1755909139019,-400.0,0.00015616,2]
[380943960,1755909139031,-400.0,0.00015616,2]
[380943961,1755909139041,-495.39,0.00015616,2]
[380943962,1755909139050,-431.15,0.00015616,2]
[380943963,1755909139059,-412.84,0.00015616,2]
[380943964,1755909139069,-469.42,0.00015616,2]
[380943965,1755909139079,-400.0,0.00015616,2]
[380943966,1755909139088,-1194.0,0.00015616,2]
[380943967,1755909139097,-400.0,0.00015616,2]
[380943968,1755909139107,-400.0,0.00015616,2]
[380943969,1755909139116,-719.77,0.00015616,2]
[380943970,1755909139126,-1072.22,0.00015616,2]
[380943971,1755909139136,-571.55,0.00015616,2]
[380943972,1755909139146,-402.59,0.00015616,2]
[380943973,1755909139156,-511.73,0.00015616,2]
[380943974,1755909139165,-400.0,0.00015616,2]
[380943975,1755909139175,-400.0,0.00015616,2]
[380943976,1755909139185,-796.82,0.00015616,2]
[380943977,1755909139194,-839.94,0.00015616,2]
[380943978,1755909139206,-697.65,0.00015616,2]
[380943979,1755909139215,-575.9,0.00015616,2]
[380943980,1755909139225,-486.14,0.00015616,2]
[380943981,1755909139235,-400.0,0.00015616,2]
[380943982,1755909139246,-499.82,0.00015616,2]
[380943983,1755909139255,-400.0,0.00015616,2]
[380943984,1755909139264,-400.0,0.00015616,2]
[380943985,1755909139276,-400.0,0.00015616,2]
[380943986,1755909139287,-400.0,0.00015616,2]
[380943987,1755909139297,-900.25,0.00015616,2]
[380943988,1755909139307,-814.32,0.00015616,2]
[380943989,1755909139316,-442.56,0.00015616,2]
[380943990,1755909139326,-529.89,0.00015616,2]
[380943991,1755909139336,-400.0,0.00015616,2]
[380943992,1755909139345,-400.0,0.00015616,2]
[380943993,1755909139355,-400.0,0.00015616,2]
[380943994,1755909139364,-400.0,0.00015616,2]
[380943995,1755909139375,-1017.87,0.00015616,2]
[380943996,1755909139384,-400.0,0.00015616,2]
[380943997,1755909139394,-657.79,0.00015616,2]
[380943998,1755909139403,-400.0,0.00015616,2]
[380943999,1755909139413,-638.0,0.00015616,2]
[380944000,1755909139423,-400.0,0.00015616,2]
[380944001,1755909139432,-410.77,0.00015616,2]
[380944002,1755909139442,-802.21,0.00015616,2]
[380944003,1755909139452,-400.0,0.00015616,2]
[380944004,1755909139461,-400.0,0.00015616,2]
[380944005,1755909139470,-400.0,0.00015616,2]
[380944006,1755909139480,-574.55,0.00015616,2]
[380944007,1755909139489,-400.0,0.00015616,2]
[380944008,1755909139498,-400.0,0.00015616,2]
[380944009,1755909139508,-601.94,0.00015616,2]
[380944010,1755909139517,-548.25,0.00015616,2]
[380944011,1755909139527,-733.18,0.00015616,2]
[380944012,1755909139536,-463.43,0.00015616,2]
[380944013,1755909139545,-614.24,0.00015616,2]